fUSD/lending_fUSD_20240125
["ID","MTS","AMOUNT","RATE_DAILY","PERIOD"]
[312697118,1706153434009,-2728.03785908,0.00021989,2]
[312697119,1706153434022,-639.32068924,0.00021989,2]
[312697120,1706153434031,-2494.62833046,0.00021989,2]
[312697121,1706153434044,-590.47055933,0.00021989,2]
[312697122,1706153434076,-455.87090641,0.00021989,2]
[312697123,1706153434104,-6236.57446842,0.00021989,2]
[312697124,1706153434117,-250.19404164,0.00021989,2]
[312697125,1706153434129,-606.13082661,0.00021989,2]
[312697130,1706153437545,-52100.18487805,0.00021989,2]
[312697131,1706153437634,-10846.64460708,0.00021989,2]
[312697132,1706153437751,-1695.7537696,0.00021989,2]
[312697133,1706153437763,-24723.5476124,0.00021989,2]
[312697134,1706153437773,-165.78079175,0.00024672,2]
[312697135,1706153437782,-450.0,0.00025,3]
[312697136,1706153437793,-499.99,0.00025,2]
[312697137,1706153437802,-171.43,0.000252,2]
[312697138,1706153437811,-500.0,0.00026,2]
[312697139,1706153437821,-303.09,0.00026968,2]
[312697140,1706153437830,-500.0,0.00027,3]
[312697141,1706153437839,-3227.0,0.000272,2]
[312697142,1706153437848,-9903.0,0.000272,2]
[312697143,1706153437857,-165.78079175,0.00027455,2]
[312697144,1706153437867,-500.0,0.00028757,2]
[312697146,1706153437876,-200.0,0.00028787,2]
[312697148,1706153437885,-250.0,0.00028886,2]
[312697150,1706153437896,-1531.9,0.0002891,2]
[312697152,1706153437905,-276.72,0.00028952,2]
[312697154,1706153437914,-550.0,0.00029,3]
[312697156,1706153437924,-22235.84146275,0.00029014,2]
[312697218,1706153440635,-441.04349995,0.00029014,2]
[312697219,1706153440646,-802.48,0.00029014,2]
[312697276,1706153445709,-400.6350373,0.00029014,2]
[312697277,1706153445723,-13.70081199,0.00029032,2]
[312697278,1706153445842,-147.46918801,0.00029032,2]
[312697279,1706153445856,-1710.6923196,0.00029075,2]
[312697280,1706153445874,-289.3076804,0.00029075,2]
[312697281,1706153445888,-210.52,0.00029134,2]
[312697282,1706153445902,-912.80827427,0.00029159,2]
[312697290,1706154228283,12590.94106959,0.0002,14]
[312697298,1706154631651,-232.33006862,0.00021847,2]
[312697299,1706154631661,-155.0,0.00021847,2]
[312697300,1706154631670,-2499.25436784,0.00021847,2]
[312697301,1706154631684,-695.46709345,0.00021847,2]
[312697302,1706154631695,-155.0,0.00021848,2]
[312697303,1706154631704,-3333.83089488,0.00021848,2]
[312697304,1706154631714,-3950.40564349,0.0002185,2]
[312697305,1706154637581,-247.03342612,0.00021846,2]
[312697306,1706154637591,-500.83592251,0.0002185,2]
[312697307,1706154637602,-1996.27119807,0.0002185,2]
[312697308,1706154637612,-150.0,0.00021859,2]
[312697309,1706154637621,-168.10605117,0.00021872,2]
[312697310,1706154637631,-168.10605117,0.00021873,2]
[312697311,1706154637640,-74.71667753,0.00021883,2]
[312697312,1706154637652,-88.81227178,0.00021883,2]
[312697313,1706154637661,-721.65,0.00021983,2]
[312697314,1706154637671,-33.39454466,0.00021983,2]
[312697315,1706154637686,-686.47545534,0.00021983,2]
[312697316,1706154637695,-688.07,0.00021983,2]
[312697317,1706154637705,-3779.8,0.00021983,2]
[312697318,1706154637714,-677.36,0.00021983,2]
[312697319,1706154637724,-713.21,0.00021984,2]
[312697320,1706154637734,-619.2,0.00021984,2]
[312697321,1706154637744,-737.14,0.00021985,2]
[312697322,1706154637754,-963.81,0.00021985,2]
[312697323,1706154637764,-715.19,0.00021986,2]
[312697324,1706154637773,-499.99,0.00021986,2]
[312697325,1706154637783,-728.81,0.00021987,2]
[312697326,1706154637792,-6028.6,0.00021987,2]
[312697327,1706154637802,-728.99,0.00021987,2]
[312697328,1706154637812,-1248.75449278,0.00021988,2]
[312697329,1706154637822,-170.4,0.00022791,2]
[312697330,1706154637832,-208.37,0.00022791,2]
[312697331,1706154637841,-260.46,0.00022791,2]
[312697332,1706154637851,-515.82,0.00023513,2]
[312697333,1706154637861,-210.0,0.00024045,2]
[312697334,1706154637871,-163.52894927,0.00025066,2]
[312697335,1706154637882,-150.0,0.000252,2]
[312697336,1706154637892,-9435.48,0.00025265,2]
[312697337,1706154637903,-204.66,0.00025357,2]
[312697338,1706154637913,-200.0,0.0002536,2]
[312697339,1706154637923,-415.53,0.00025378,2]
[312697340,1706154637933,-1792.19,0.00025389,2]
[312697341,1706154637943,-250.0,0.00025392,2]
[312697342,1706154637952,-2331.62,0.0002541,2]
[312697343,1706154637961,-165.74,0.00025434,2]
[312697344,1706154637971,-500.0,0.00025437,2]
[312697345,1706154637980,-2000.0,0.00025447,2]
[312697346,1706154637989,-1000.0,0.00025507,2]
[312697347,1706154637998,-1910.94,0.00025548,2]
[312697348,1706154638009,-250.0,0.00025565,2]
[312697349,1706154638018,-162.48,0.00025623,2]
[312697350,1706154638028,-515.82,0.00025777,2]
[312697351,1706154638038,-200.0,0.00025813,2]
[312697352,1706154638047,-1183.16,0.00025814,2]
[312697353,1706154638056,-6645.93923516,0.00025816,2]
[312697354,1706154638066,-524.12140558,0.00025825,2]
[312697355,1706154638075,-2154.78857195,0.00025826,2]
[312697356,1706154638084,-162.48,0.00025957,2]
[312697357,1706154638093,-500.0,0.00026,2]
[312697358,1706154638102,-162.48,0.00026291,2]
[312697359,1706154638112,-293.0,0.00026449,2]
[312697360,1706154638122,-1910.94,0.00026494,2]
[312697361,1706154638131,-1163.24,0.00026575,2]
[312697362,1706154638141,-491.16,0.00026575,2]
[312697363,1706154638149,-2100.04,0.00026575,2]
[312697364,1706154638159,-162.48,0.00026625,2]
[312697365,1706154638168,-162.48,0.00026958,2]
[312697366,1706154638177,-1758.96633596,0.00027054,2]
[312697367,1706154638194,-415.55198555,0.00027054,2]
[312697368,1706154638220,-157.10167849,0.00027054,2]
[312697369,1706154638230,-189.38959544,0.000272,2]
[312697370,1706154638254,-3046.61040456,0.000272,2]
[312697371,1706154638263,-10013.0,0.000272,2]
[312697372,1706154638273,-208.37,0.0002735,2]
[312697373,1706154638283,-330.51,0.00027397,2]
[312697374,1706154638292,-8239.1,0.00027397,2]
[312697375,1706154638302,-584.55,0.00027397,2]
[312697376,1706154638311,-1910.94,0.00027439,2]
[312697377,1706154638320,-584.55,0.00027556,2]
[312697378,1706154638330,-330.51,0.00027686,2]
[312697379,1706154638339,-584.55,0.00027714,2]
[312697380,1706154638348,-584.55,0.00027872,2]
[312697381,1706154638357,-943.97973617,0.00027967,2]
[312697382,1706154638367,-223.07409071,0.00027968,20]
[312697383,1706154638378,-330.51,0.00027974,2]
[312697384,1706154638388,-1159.50102986,0.0002803,6]
[312697385,1706154638398,-584.55,0.0002803,2]
[312697386,1706154638407,-515.82,0.00028041,2]
[312697387,1706154638416,-800.0,0.00028164,2]
[312697388,1706154638426,-584.55,0.00028189,2]
[312697389,1706154638435,-1399.96,0.00028203,2]
[312697390,1706154638444,-2379.58,0.00028203,2]
[312697391,1706154638454,-163.52894927,0.0002825,2]
[312697392,1706154638463,-330.51,0.00028262,2]
[312697393,1706154638472,-584.55,0.00028347,2]
[312697394,1706154638482,-1910.94,0.00028384,2]
[312697395,1706154638491,-584.55,0.00028505,2]
[312697396,1706154638501,-330.51,0.00028551,2]
[312697397,1706154638510,-584.55,0.00028664,2]
[312697398,1706154638519,-1000.0,0.00028695,2]
[312697399,1706154638529,-2331.62,0.00028698,2]
[312697400,1706154638538,-486.3236,0.00028814,2]
[312697401,1706154638547,-1000.0,0.00028814,2]
[312697402,1706154638556,-1489.16861196,0.00028814,4]
[312697403,1706154638565,-584.55,0.00028822,2]
[312697404,1706154638575,-330.51,0.00028839,2]
[312697405,1706154638584,-166.61664257,0.00028912,2]
[312697406,1706154638594,-165.74290237,0.00028912,2]
[312697407,1706154638603,-159.14140732,0.00028912,2]
[312697408,1706154638612,-202.84481839,0.00028912,2]
[312697409,1706154638622,-387.62224241,0.00028913,2]
[312697410,1706154638632,-245000.0,0.00028914,2]
[312697411,1706154638642,-100000.0,0.00028914,2]
[312697412,1706154638650,-263.0,0.00029094,2]
[312697413,1706154638660,-330.51,0.00029128,2]
[312697415,1706154638670,-78643.52687181,0.00029158,2]
[312697417,1706154638679,-2718.19981851,0.00029159,7]
[312697418,1706154638691,-577.35924802,0.00029159,2]
[312697419,1706154638701,-1910.94,0.0002933,2]
[312697420,1706154638710,-205.0,0.00029386,2]
[312697421,1706154638719,-330.51,0.00029416,2]
[312697422,1706154638729,-330.51,0.00029704,2]
[312697423,1706154638738,-178.77206168,0.0002999,2]
[312697424,1706154638747,-330.51,0.00029993,2]
[312697425,1706154638757,-155.0,0.0003,2]
[312697426,1706154638767,-512.04453184,0.0003,2]
[312697428,1706154638777,-309374.29947113,0.0003,4]
[312697430,1706154638786,-583.45307407,0.0003,2]
[312697432,1706154638796,-9652.53351491,0.0003,2]
[312697433,1706154638805,-12551.99827427,0.0003,4]
[312697435,1706154638814,-694.51811641,0.0003,2]
[312697437,1706154638823,-45536.370379,0.0003,4]
[312697438,1706154638832,-5860.71128516,0.0003,4]
[312697439,1706154638841,-157.357135,0.0003,2]
[312697440,1706154638850,-408.52199517,0.0003,2]
[312697441,1706154638859,-408.52199517,0.0003,2]
[312697442,1706154638868,-408.52199517,0.0003,2]
[312697443,1706154638878,-7878.46779639,0.0003,2]
[312697444,1706154638888,-3000.0,0.0003,2]
[312697445,1706154638897,-167.31,0.00030036,2]
[312697446,1706154638906,-154.4,0.00030137,2]
[312697447,1706154638915,-330.51,0.00030281,2]
[312697448,1706154638924,-205.0,0.00030287,3]
[312697449,1706154638933,-515.82,0.00030305,2]
[312697450,1706154638942,-2331.62,0.00030342,2]
[312697451,1706154638951,-330.51,0.00030569,2]
[312697452,1706154639164,-257.33,0.000308,7]
[312697453,1706154639183,-150.0,0.000308,2]
[312697454,1706154639192,-150.0,0.000308,20]
[312697455,1706154639201,-330.51,0.00030858,2]
[312697456,1706154639210,-257.33,0.00030937,7]
[312697457,1706154639219,-600.0,0.00031,3]
[312697458,1706154639229,-257.33,0.00031074,7]
[312697459,1706154639238,-330.51,0.00031146,2]
[312697460,1706154639248,-32152.0,0.00031155,2]
[312697461,1706154639257,-205.0,0.00031187,5]
[312697462,1706154639266,-257.33,0.00031211,7]
[312697463,1706154639275,-257.33,0.00031348,7]
[312697464,1706154639285,-168.32412908,0.00031385,2]
[312697465,1706154639294,-163.52894927,0.00031433,2]
[312697466,1706154639304,-330.51,0.00031435,2]
[312697467,1706154639313,-500.0,0.00031468,2]
[312697468,1706154639323,-71586.0,0.00031482,2]
[312697469,1706154639332,-257.33,0.00031485,7]
[312697470,1706154639343,-257.33,0.00031622,7]
[312697471,1706154639352,-180.0,0.00031644,2]
[312697472,1706154639362,-197.92,0.00031644,2]
[312697473,1706154639373,-154.4,0.00031703,2]
[312697474,1706154639382,-330.51,0.00031723,2]
[312697475,1706154639393,-257.33,0.00031759,7]
[312697476,1706154639403,-3984.26542287,0.00031797,2]
[312697477,1706154639412,-307933.079558,0.000318,2]
[312697478,1706154639422,-1000.0,0.00031883,2]
[312697479,1706154639432,-474.96743432,0.00031896,7]
[312697480,1706154639442,-260.46,0.00031908,2]
[312697481,1706154639452,-2331.62,0.00031986,2]
[312697482,1706154639465,-155.82809595,0.00032,4]
[312697483,1706154639475,-3821.00997196,0.00032,2]
[312697484,1706154639484,-1489.16861195,0.00032002,5]
[312697485,1706154639495,-330.51,0.00032011,2]
[312697486,1706154639504,-205.0,0.00032088,7]
[312697487,1706154639514,-150.0,0.0003217,20]
[312697488,1706154639523,-330.51,0.000323,2]
[312697489,1706154639533,-170.64638635,0.00032396,4]
[312697490,1706154639542,-152.88280839,0.00032396,2]
[312697491,1706154639552,-2014.30679956,0.000324,4]
[312697492,1706154639561,-155.82477594,0.000325,2]
[312697493,1706154639571,-515.82,0.00032569,2]
[312697494,1706154639581,-330.51,0.00032588,2]
[312697495,1706154639591,-156.58380894,0.00032696,2]
[312697496,1706154639600,-561.91578337,0.00032696,4]
[312697497,1706154639611,-2418.56954635,0.00032696,4]
[312697498,1706154639622,-708.23147458,0.00032696,4]
[312697499,1706154639634,-161.5300588,0.00032697,4]
[312697500,1706154639645,-2106.18420527,0.00032697,4]
[312697501,1706154639655,-500.0,0.00032697,2]
[312697502,1706154639665,-273585.63178214,0.00032698,2]
[312697503,1706154639678,-196.71745588,0.00032776,2]
[312697504,1706154639691,-330.51,0.00032877,2]
[312697505,1706154639702,-161.53,0.00032877,15]
[312697506,1706154639711,-205.0,0.00032988,8]
[312697507,1706154639722,-650.0,0.00033,3]
[312697508,1706154639732,-282.31612789,0.00033,4]
[312697509,1706154639742,-152.88280836,0.00033256,2]
[312697510,1706154639752,-154.4,0.00033268,2]
[312697511,1706154639763,-248.21248276,0.0003354,2]
[312697512,1706154639772,-233.9453121,0.0003354,20]
[312697513,1706154639782,-2331.62,0.0003363,2]
[312697514,1706154639791,-176.0,0.00033684,2]
[312697515,1706154639800,-205.0,0.00033888,10]
[312697516,1706154639810,-1000.0,0.00034,4]
[312697517,1706154639819,-152.88280836,0.00034116,2]
[312697518,1706154639830,-2014.30679949,0.00034128,6]
[312697519,1706154639840,-170.4,0.00034187,2]
[312697520,1706154639851,-150.0,0.00034548,10]
[312697521,1706154639860,-163.52894927,0.00034617,2]
[312697522,1706154639871,-205.0,0.00034789,12]
[312697523,1706154639881,-515.82,0.00034833,2]
[312697524,1706154639890,-154.4,0.00034834,2]
[312697525,1706154639899,-152.88280836,0.00034976,2]
[312697526,1706154639908,-25000.0,0.00035,7]
[312697527,1706154639917,-700.0,0.00035,3]
[312697528,1706154639926,-1262.24661456,0.00035,4]
[312697529,1706154639935,-280.12915127,0.00035,2]
[312697530,1706154639945,-3000.0,0.00035,2]
[312697531,1706154639954,-1000.0,0.00035072,2]
[312697532,1706154639963,-1489.16861195,0.00035191,7]
[312697533,1706154639972,-153.51,0.000354,3]
[312697534,1706154639981,-376.64,0.000354,3]
[312697535,1706154639991,-376.64,0.000354,3]
[312697536,1706154640000,-376.64,0.000354,3]
[312697537,1706154640009,-376.64,0.000354,3]
[312697538,1706154640019,-376.64,0.000354,3]
[312697539,1706154640029,-376.64,0.000354,3]
[312697540,1706154640038,-376.64,0.000354,3]
[312697541,1706154640047,-376.64,0.000354,3]
[312697542,1706154640056,-376.64,0.000354,3]
[312697543,1706154640067,-376.64,0.000354,3]
[312697544,1706154640077,-376.64,0.000354,3]
[312697545,1706154640087,-376.64,0.000354,3]
[312697546,1706154640098,-376.64,0.000354,3]
[312697547,1706154640107,-376.64,0.000354,3]
[312697548,1706154640118,-376.64,0.000354,3]
[312697549,1706154640137,-376.64,0.000354,3]
[312697550,1706154640150,-376.64,0.000354,3]
[312697551,1706154640161,-376.64,0.000354,3]
[312697552,1706154640173,-376.64,0.000354,3]
[312697553,1706154640183,-376.64,0.000354,3]
[312697554,1706154640193,-541.10677632,0.00035608,2]
[312697555,1706154640202,-205.0,0.00035689,13]
[312697556,1706154640213,-152.88280836,0.00035837,2]
[312697557,1706154640224,-2014.30679949,0.00035856,8]
[312697558,1706154640234,-154.4,0.00036399,2]
[312697559,1706154640244,-820.0,0.00036538,5]
[312697560,1706154640253,-205.0,0.0003659,15]
[312697561,1706154640263,-152.88280836,0.00036697,2]
[312697562,1706154640273,-200.0,0.0003688,5]
[312697563,1706154640283,-1810.92,0.00036885,5]
[312697564,1706154640293,-204.94563858,0.00036885,5]
[312697565,1706154640302,-151.64,0.00036885,5]
[312697566,1706154640312,-1776.26,0.00036886,5]
[312697567,1706154640322,-1824.41,0.00036886,5]
[312697568,1706154640332,-1816.99,0.00036887,5]
[312697569,1706154640342,-1791.6,0.00036888,5]
[312697570,1706154640352,-1819.07,0.0003689,5]
[312697571,1706154640362,-5000.0,0.0003689,7]
[312697572,1706154640372,-1818.68,0.0003689,5]
[312697573,1706154640381,-161.53,0.00036986,15]
[312697574,1706154640391,-750.0,0.00037,3]
[312697575,1706154640400,-778.8580762,0.00037,2]
[312697576,1706154640410,-150.0,0.00037,2]
[312697577,1706154640420,-152.62234094,0.00037,2]
[312697578,1706154640430,-176.54,0.00037,2]
[312697579,1706154640440,-515.82,0.00037097,2]
[312697580,1706154640450,-172.12827896,0.00037308,14]
[312697581,1706154640459,-205.0,0.0003749,17]
[312697582,1706154640469,-150.0,0.00037548,2]
[312697583,1706154640478,-176.54,0.00037548,2]
[312697584,1706154640488,-152.88280836,0.00037557,2]
[312697585,1706154640498,-2014.30679949,0.00037583,10]
[312697586,1706154640508,-6840.48897014,0.00037786,14]
[312697587,1706154640518,-163.52894927,0.000378,2]
[312697588,1706154640528,-1163.24,0.00037808,2]
[312697589,1706154640537,-2100.04,0.00037808,2]
[312697590,1706154640547,-2735.0,0.0003789,4]
[312697591,1706154640557,-802.0,0.00037891,2]
[312697592,1706154640566,-300.0,0.00037891,2]
[312697593,1706154640575,-500.0,0.00037891,2]
[312697594,1706154640585,-3984.26542287,0.00037897,2]
[312697595,1706154640594,-24450.17218279,0.000379,2]
[312697596,1706154640604,-607142.737361,0.000379,2]
[312697597,1706154640614,-185.4250769,0.000379,2]
[312697598,1706154640624,-154.4,0.00037965,2]
[312697599,1706154640633,-162.0,0.00038,2]
[312697600,1706154640643,-165.0,0.00038,2]
[312697601,1706154640652,-150.0,0.00038096,2]
[312697602,1706154640661,-176.54,0.00038096,2]
[312697603,1706154640671,-5621.0,0.0003815,30]
[312697604,1706154640683,-5621.0,0.0003815,60]
[312697605,1706154640693,-1000.0,0.0003826,2]
[312697606,1706154640703,-151.90559164,0.00038293,2]
[312697607,1706154640713,-150.0,0.00038356,2]
[312697608,1706154640722,-205.0,0.0003839,19]
[312697609,1706154640732,-183.41231157,0.00038415,7]
[312697610,1706154640741,-184.80694757,0.00038415,7]
[312697611,1706154640751,-152.88280836,0.00038417,2]
[312697612,1706154640761,-1500.0,0.00038485,2]
[312697613,1706154640772,-1000.0,0.000385,2]
[312697614,1706154640783,-176.54,0.00038644,2]
[312697615,1706154640794,-4216.0,0.0003865,30]
[312697616,1706154640804,-4216.0,0.0003865,60]
[312697617,1706154640814,-630.63818155,0.00038695,2]
[312697618,1706154640825,-231.33603672,0.0003888,2]
[312697619,1706154640835,-231.3360367,0.0003888,2]
[312697620,1706154640845,-231.3360367,0.0003888,2]
[312697621,1706154640855,-231.3360367,0.0003888,2]
[312697622,1706154640865,-282.26694691,0.0003898,2]
[312697623,1706154640874,-977.0189236,0.00039,4]
[312697624,1706154640884,-701.12691554,0.00039,10]
[312697625,1706154640893,-1430.03686544,0.00039,2]
[312697626,1706154640903,-620.81629579,0.00039,4]
[312697627,1706154640914,-197.48451168,0.00039,4]
[312697628,1706154640923,-231.3360367,0.00039023,2]
[312697629,1706154640932,-150.0,0.00039033,2]
[312697630,1706154640942,-1500.0,0.00039121,2]
[312697631,1706154640951,-2810.0,0.0003915,30]
[312697632,1706154640961,-2810.0,0.0003915,60]
[312697633,1706154640972,-153.45120575,0.0003915,30]
[312697634,1706154640981,-176.54,0.00039192,2]
[312697635,1706154640991,-170.8,0.0003926,2]
[312697636,1706154641000,-152.88280836,0.00039277,3]
[312697637,1706154641009,-205.0,0.00039291,20]
[312697638,1706154641019,-2364.26303728,0.00039308,11]
[312697639,1706154641028,-2014.30679949,0.00039311,13]
[312697640,1706154641038,-1500.0,0.00039316,2]
[312697641,1706154641047,-515.82,0.00039361,2]
[312697642,1706154641058,-150.0,0.00039366,2]
[312697643,1706154641067,-150.0,0.00039401,2]
[312697644,1706154641078,-150.0,0.00039421,2]
[312697645,1706154641088,-150.0,0.00039487,2]
[312697646,1706154641099,-150.0,0.00039497,2]
[312697647,1706154641108,-491.75034239,0.000395,4]
[312697648,1706154641117,-150.0,0.00039527,2]
[312697649,1706154641127,-154.4,0.0003953,2]
[312697650,1706154641136,-150.0,0.00039541,2]
[312697651,1706154641146,-1500.0,0.00039561,2]
[312697652,1706154641155,-153.51,0.000396,3]
[312697653,1706154641164,-153.51,0.000396,3]
[312697654,1706154641174,-376.64,0.000396,3]
[312697655,1706154641184,-376.64,0.000396,3]
[312697656,1706154641194,-376.64,0.000396,3]
[312697657,1706154641203,-376.64,0.000396,3]
[312697658,1706154641213,-376.64,0.000396,3]
[312697659,1706154641222,-376.64,0.000396,3]
[312697660,1706154641232,-376.64,0.000396,3]
[312697661,1706154641242,-376.64,0.000396,3]
[312697662,1706154641251,-376.64,0.000396,3]
[312697663,1706154641260,-376.64,0.000396,3]
[312697664,1706154641270,-376.64,0.000396,3]
[312697665,1706154641279,-376.64,0.000396,3]
[312697666,1706154641289,-376.64,0.000396,3]
[312697667,1706154641299,-376.64,0.000396,3]
[312697668,1706154641308,-376.64,0.000396,3]
[312697669,1706154641318,-376.64,0.000396,3]
[312697670,1706154641327,-376.64,0.000396,3]
[312697671,1706154641338,-376.64,0.000396,3]
[312697672,1706154641349,-376.64,0.000396,3]
[312697673,1706154641359,-376.64,0.000396,3]
[312697674,1706154641370,-150.0,0.0003961,2]
[312697675,1706154641383,-150.0,0.0003966,2]
[312697676,1706154641393,-150.0,0.00039662,2]
[312697677,1706154641402,-150.0,0.00039664,2]
[312697678,1706154641412,-1500.0,0.00039697,2]
[312697679,1706154641421,-1500.0,0.00039722,2]
[312697680,1706154641430,-176.54,0.0003974,2]
[312697681,1706154641440,-352.1718683,0.000399,4]
[312697682,1706154641449,-150.0,0.00039945,2]
[312697683,1706154641459,-150.0,0.00039947,2]
[312697684,1706154641469,-1500.0,0.00039972,2]
[312697685,1706154641478,-500.0,0.00039999,15]
[312697686,1706154641487,-594.74166293,0.00039999,15]
[312697687,1706154641497,-22049.77147498,0.0004,4]
[312697688,1706154641506,-155.0,0.0004,2]
[312697689,1706154641516,-608.47,0.0004,14]
[312697690,1706154641525,-569.5924431,0.0004,4]
[312697691,1706154641535,-2272.01463956,0.0004,4]
[312697692,1706154641544,-961.81967318,0.0004,4]
[312697693,1706154641555,-37856.73290772,0.0004,4]
[312697694,1706154641573,-7801.22813972,0.0004,4]
[312697695,1706154641597,-1503.88522232,0.0004,4]
[312697696,1706154641609,-377.44548477,0.0004,4]
[312697697,1706154641635,-2888.88628797,0.0004,4]
[312697718,1706154642660,-499.99,0.00021985,2]
[312697719,1706154642670,-716.50286321,0.0004,4]
[312697720,1706154642686,-2395.95149761,0.0004,4]
[312697721,1706154642698,-787.3965777,0.0004,4]
[312697722,1706154642708,-336.65700188,0.0004,4]
[312697723,1706154642719,-353.65999998,0.0004,4]
[312697724,1706154642730,-340.64190349,0.0004,4]
[312697725,1706154644026,-500.0,0.00025543,2]
[312697726,1706154644036,-231.28664941,0.00039599,4]
[312697727,1706154644046,-370.03081459,0.00039599,4]
[312697728,1706154644058,-1376.62938907,0.00039599,4]
[312697729,1706154644067,-1650.34376544,0.0004,4]
[312697730,1706154644076,-1085.37856486,0.0004,4]
[312697731,1706154644085,-155.40553162,0.0004,4]
[312697732,1706154644095,-569.12017158,0.0004,2]
[312697733,1706154644104,-192.97765448,0.0004,4]
[312697734,1706154644113,-3000.0,0.0004,2]
[312697735,1706154644123,-59.25401606,0.0004,32]
[312697736,1706154644135,-348.60302086,0.0004,32]
[312697737,1706154644147,-554.00000005,0.0004,32]
[312697738,1706154644159,-38.14296303,0.0004,32]
[312697739,1706154644169,-6804.51803697,0.0004002,5]
[312697740,1706154644181,-1022.65060933,0.0004002,5]
[312697741,1706154644193,-300.75597319,0.0004002,5]
[312697742,1706154644205,-886.32444843,0.0004002,5]
[312697743,1706154644217,-271.83505795,0.0004002,5]
[312697744,1706154644230,-3662.48740782,0.0004002,5]
[312697745,1706154644247,-7409.86951319,0.0004002,5]
[312697746,1706154644260,-278.02097649,0.0004002,5]
[312697747,1706154644272,-2441.22968121,0.0004002,5]
[312697748,1706154644284,-556.75828576,0.0004002,5]
[312697749,1706154644305,-1094.71641432,0.0004002,5]
[312697750,1706154644317,-401.24529121,0.0004002,5]
[312697751,1706154644329,-1371.19618759,0.0004002,5]
[312697752,1706154644342,-400.30481951,0.0004002,5]
[312697753,1706154644353,-1559.4888852,0.0004002,5]
[312697754,1706154644365,-1317.38623165,0.0004002,5]
[312697755,1706154644377,-347.18442988,0.0004002,5]
[312697756,1706154644389,-562.92771398,0.0004002,5]
[312697757,1706154644402,-24866.10003632,0.0004002,5]
[312697759,1706154644411,-200.0,0.00040054,7]
[312697761,1706154644421,-200.0,0.00040054,7]
[312697763,1706154644431,-150.0,0.00040085,2]
[312697765,1706154644440,-200.0,0.0004012,7]
[312697767,1706154644450,-800.0,0.0004012,8]
[312697769,1706154644459,-200.0,0.0004012,7]
[312697771,1706154644469,-800.0,0.00040121,8]
[312697773,1706154644479,-800.0,0.00040121,8]
[312697774,1706154644490,-800.0,0.00040121,8]
[312697775,1706154644499,-152.88280836,0.00040137,7]
[312697776,1706154644509,-1000.0,0.00040143,4]
[312697777,1706154644519,-150.0,0.00040148,2]
[312697778,1706154644529,-150.0,0.0004016,2]
[312697780,1706154644539,-150.0,0.00040185,2]
[312697782,1706154644549,-67.75325299,0.0004019,2]
[312697785,1706154644561,-175.24674701,0.0004019,2]
[312697787,1706154644571,-152.77500284,0.00040191,22]
[312697789,1706154644587,-52.22499716,0.00040191,22]
[312697790,1706154644597,-150.0,0.00040204,2]
[312697791,1706154644606,-150.0,0.00040223,2]
[312697792,1706154644616,-1500.0,0.0004024,2]
[312697793,1706154644625,-150.0,0.00040269,2]
[312697794,1706154644635,-162.0,0.00040274,14]
[312697795,1706154644644,-165.0,0.00040274,14]
[312697796,1706154644654,-150.0,0.00040281,2]
[312697797,1706154644663,-150.0,0.00040284,2]
[312697798,1706154644673,-176.54,0.00040288,2]
[312697799,1706154644686,-150.0,0.00040289,2]